bitfinex-derivatives/quotes_SOLF0:USTF0_20250719
["timestamp","ask_amount","ask_price","bid_price","bid_amount"]
[1752923365380,3.18,177.76,177.75,5.72653162]
[1752923366079,3.18,177.75,177.69,6.88307445]
[1752923366280,3.18,177.75,177.71,3.17]
[1752923366478,3.18,177.75,177.72,13.51396777]
[1752923366779,3.18,177.75,177.73,10.34396777]
[1752923366979,3.18,177.75,177.74,5.72424428]
[1752923367181,3.18,177.75,177.74,8.89424428]
[1752923368482,3.18,177.75,177.74,8.89056943]
[1752923368780,3.18,177.75,177.74,14.51366943]
[1752923369676,3.18,177.75,177.74,19.12952414]
[1752923370974,3.18,177.77,177.75,5.6227]
[1752923371176,3.18,177.79,177.77,3.17]
[1752923371375,3.18,177.79,177.78,8.89056943]
[1752923371580,3.18,177.81,177.78,8.89056943]
[1752923371780,3.18,177.8,177.79,3.17]
[1752923372683,8.8012,177.8,177.79,3.17]
[1752923372876,3.18,177.79,177.78,3.17]
[1752923373183,3.18,177.79,177.78,8.88751066]
[1752923373583,3.18,177.79,177.78,5.71751066]
[1752923373882,3.18,177.79,177.72,4.69179349]
[1752923373883,3.18,177.79,177.72,3.17]
[1752923374082,3.18,177.76,177.74,8.793]
[1752923374282,3.18,177.76,177.75,5.71960283]
[1752923374881,3.18,177.76,177.75,8.88960283]
[1752923375283,3.18,177.76,177.75,14.51240283]
[1752923375684,3.18,177.76,177.75,8.88960283]
[1752923375886,3.18,177.76,177.75,13.52478002]
[1752923376386,3.18,177.76,177.75,8.88960283]
[1752923377681,3.18,177.76,177.75,5.71960283]
[1752923377884,3.18,177.76,177.75,8.79960283]
[1752923378087,3.18,177.76,177.75,14.42240283]
[1752923378286,3.12,177.78,177.76,3.08]
[1752923378885,5.622,177.78,177.76,3.08]
[1752923379085,3.12,177.77,177.76,3.08]
[1752923379686,3.12,177.76,177.74,8.73849714]
[1752923379887,3.12,177.76,177.75,5.71801687]
[1752923383186,3.12,177.76,177.75,8.79801687]
[1752923383491,3.12,177.76,177.75,3.08]
[1752923384492,8.7425,177.76,177.74,0.03549714]
[1752923384691,3.12,177.75,177.74,0.03549714]
[1752923384897,3.12,177.75,177.74,19.09014065]
[1752923385991,8.7422,177.77,177.74,19.09014065]
[1752923386289,3.12,177.76,177.75,8.79767584]
[1752923388998,3.12,177.76,177.75,14.42047584]
[1752923389598,3.12,177.76,177.75,8.79767584]
[1752923389789,8.7425,177.76,177.75,8.79767584]
[1752923391101,8.7425,177.76,177.75,5.71767584]
[1752923391298,8.7425,177.76,177.75,10.35584442]
[1752923392103,8.7425,177.76,177.75,10.37241954]
[1752923392400,3.12,177.76,177.75,10.37241954]
[1752923393100,3.12,177.76,177.75,13.45241954]
[1752923393398,3.12,177.76,177.75,19.07521954]
[1752923396103,3.12,177.78,177.77,3.08]
[1752923396306,3.12,177.78,177.77,8.81425096]
[1752923396602,8.7418,177.78,177.77,8.81425096]
[1752923396904,3.12,177.78,177.77,5.73425096]
[1752923397204,3.12,177.78,177.77,13.45705927]
[1752923399705,8.7418,177.78,177.77,10.37705927]
[1752923400605,3.12,177.74,177.73,3.08]
[1752923400900,3.12,177.74,177.73,10.3882957]
[1752923401102,8.7431,177.74,177.73,5.74299631]
[1752923401504,8.7431,177.74,177.71,3.08]
[1752923401505,3.12,177.74,177.71,3.08]
[1752923401699,2.19128096,177.72,177.71,3.08]
[1752923401905,5.31128096,177.72,177.71,13.39116143]
[1752923403602,5.31128096,177.72,177.71,10.31116143]
[1752923404407,5.31128096,177.72,177.71,13.39116143]
[1752923404710,3.12,177.72,177.71,13.39116143]
[1752923407311,8.7437,177.72,177.71,13.39116143]
[1752923408413,8.7437,177.72,177.71,10.31116143]
[1752923409113,8.7437,177.72,177.71,13.55116143]
[1752923409315,8.7437,177.72,177.71,10.31116143]
[1752923411320,8.7437,177.72,177.71,13.55116143]
[1752923413228,8.7437,177.72,177.71,8.90404855]
[1752923413622,8.7437,177.72,177.71,5.66404855]
[1752923416026,8.7437,177.72,177.71,10.3035417]
[1752923418723,8.7437,177.72,177.71,5.66404855]
[1752923419027,8.864,177.71,177.7,0.03555413]
[1752923419225,11.05528096,177.71,177.7,0.03555413]
[1752923420233,11.05528096,177.71,177.7,5.60534012]
[1752923423028,11.05528096,177.71,177.7,0.03555413]
[1752923425231,5.6247,177.69,177.67,3.24]
[1752923425434,5.6247,177.69,177.68,10.2011109]
[1752923425937,8.8647,177.69,177.68,10.2011109]
[1752923426137,8.865,177.68,177.67,3.24]
[1752923426329,8.865,177.68,177.67,13.44035165]
[1752923430239,8.90066923,177.69,177.67,10.19685681]
[1752923430438,8.90066923,177.69,177.68,7.87299168]
[1752923432234,8.90066923,177.69,177.68,13.43404116]
[1752923432638,8.90066923,177.69,177.68,3.24]
[1752923433039,10.30565062,177.69,177.68,3.24]
[1752923436641,5.6252,177.68,177.66,129.87661279]
[1752923436834,10.09018139,177.68,177.67,13.30706619]
[1752923437536,10.09018139,177.68,177.67,10.19706619]
[1752923437841,3.06,177.67,177.61,6.10161978]
[1752923438041,4.46498139,177.65,177.62,10.20126715]
[1752923438242,4.46498139,177.65,177.63,10.20126715]
[1752923438437,4.46498139,177.65,177.64,10.20126715]
[1752923438742,3.06,177.65,177.64,4.63526883]
[1752923439045,3.06,177.65,177.64,7.74526883]
[1752923440243,8.6859,177.65,177.64,7.74526883]
[1752923440742,3.06,177.65,177.64,7.74526883]
[1752923441545,8.6859,177.65,177.64,7.74526883]
[1752923443946,10.88197833,177.65,177.64,4.63526883]
[1752923449449,5.6263,177.64,177.63,3.11]
[1752923449651,8.6863,177.64,177.63,7.74945691]
[1752923450652,8.6863,177.64,177.63,4.63945691]
[1752923451652,3.06,177.6,177.59,3.11]
[1752923451851,3.06,177.6,177.59,7.74844795]
[1752923452055,3.06,177.6,177.59,4.63844795]
[1752923452346,8.6875,177.6,177.59,4.63844795]
[1752923452548,10.88357833,177.6,177.59,7.74844795]
[1752923452755,10.88357833,177.6,177.59,4.63844795]
[1752923453844,10.88357833,177.6,177.59,7.74844795]
[1752923454244,8.6875,177.6,177.59,7.74844795]
[1752923455653,3.06,177.6,177.59,7.74844795]
[1752923455953,5.25607833,177.62,177.6,3.11]
[1752923456149,5.25607833,177.62,177.61,7.74844795]
[1752923456753,5.25607833,177.62,177.59,3.11]
[1752923457058,3.06,177.61,177.6,4.6346947]
[1752923457252,8.6872,177.61,177.6,4.6346947]
[1752923457753,8.6877,177.6,177.58,133.50048476]
[1752923457954,7.82377833,177.6,177.59,4.6350969]
[1752923458550,10.88377833,177.6,177.59,4.6350969]
[1752923459257,10.88377833,177.6,177.59,7.7450969]
[1752923460447,3.06,177.62,177.6,3.11]
[1752923460654,3.06,177.64,177.62,3.11]
[1752923461154,8.6861,177.65,177.62,3.11]
[1752923461455,3.06,177.67,177.64,3.11]
[1752923461655,3.06,177.66,177.64,3.11]
[1752923461855,8.6858,177.66,177.64,3.11]
[1752923462155,3.06,177.66,177.64,3.11]
[1752923462356,5.6259,177.65,177.64,3.11]
[1752923462556,5.6259,177.65,177.64,7.74175729]
[1752923463850,8.6859,177.65,177.64,7.74175729]
[1752923464449,8.6859,177.65,177.64,3.11]
[1752923464855,8.6859,177.65,177.64,7.74152172]
[1752923476163,8.6859,177.65,177.64,4.63152172]
[1752923476566,8.8366,177.63,177.62,3.26]
[1752923476766,8.8366,177.63,177.62,7.88282485]
[1752923477460,8.8366,177.63,177.62,4.62282485]
[1752923477662,3.21,177.63,177.58,133.65048476]
[1752923477959,3.21,177.61,177.59,4.62487855]
[1752923478162,3.21,177.61,177.6,4.62487855]
[1752923478364,8.8378,177.59,177.58,130.39048476]
[1752923478666,8.8378,177.59,177.58,135.01666229]
[1752923479465,11.03387833,177.59,177.58,135.01666229]
[1752923480069,11.03387833,177.59,177.58,138.27666229]
[1752923480368,8.8378,177.59,177.58,138.27666229]
[1752923484776,3.21,177.59,177.58,138.27666229]
[1752923485966,0.0356999,177.6,177.58,138.27666229]
[1752923486171,0.0356999,177.6,177.59,7.88617753]
[1752923486672,8.8364,177.64,177.59,4.62617753]
[1752923486864,8.8364,177.64,177.61,3.26]
[1752923487170,8.8364,177.64,177.6,107.48617753]
[1752923487171,8.8364,177.64,177.63,3.26]
[1752923487472,8.8364,177.64,177.63,7.88617753]
[1752923487966,5.6261,177.65,177.63,7.88617753]
[1752923488174,8.8361,177.65,177.64,7.88187201]
[1752923489468,8.8361,177.65,177.64,4.62187201]
[1752923490273,8.8361,177.65,177.64,7.88187201]
[1752923490965,8.8361,177.65,177.64,4.62187201]
[1752923491272,11.03217833,177.65,177.64,4.62187201]
[1752923496778,11.03217833,177.65,177.64,7.73187201]
[1752923498374,11.03217833,177.65,177.64,4.62187201]
[1752923499680,5.6263,177.64,177.63,0.03561331]
[1752923499878,8.7663,177.64,177.63,4.65800784]
[1752923500078,3.14,177.64,177.6,3.11]
[1752923500373,8.7678,177.59,177.58,130.39048476]
[1752923500570,10.96387833,177.59,177.58,130.39048476]
[1752923502075,3.14,177.57,177.56,3.11]
[1752923502270,5.33607833,177.57,177.55,3.11]
[1752923502484,3.14,177.56,177.55,3.11]
[1752923502971,3.14,177.56,177.53,3.11]
[1752923503181,10.96547833,177.54,177.53,3.11]
[1752923503477,3.14,177.53,177.52,3.11]
[1752923504681,8.7697,177.53,177.52,3.11]
[1752923505881,8.7697,177.53,177.49,10.32753839]
[1752923506080,3.14,177.52,177.51,3.11]
[1752923507084,8.7701,177.52,177.51,3.11]
[1752923507478,3.14,177.51,177.49,3.11]
[1752923507682,3.14,177.5,177.47,107.43663839]
[1752923508280,3.14,177.49,177.47,107.43663839]
[1752923508473,3.14,177.51,177.47,107.43663839]
[1752923508783,3.14,177.51,177.48,3.11]
[1752923509379,3.14,177.52,177.5,3.11]
[1752923509588,5.33607833,177.53,177.5,3.11]
[1752923510080,3.14,177.52,177.5,3.11]
[1752923511285,8.7702,177.52,177.51,3.11]
[1752923511790,3.14,177.51,177.5,3.11]
[1752923512082,3.14,177.51,177.5,7.70598205]
[1752923512479,8.7704,177.51,177.5,7.70598205]
[1752923512784,3.14,177.51,177.5,13.33668205]
[1752923512980,0.0354801,177.52,177.51,3.11]
[1752923513173,0.0354801,177.52,177.51,13.33638205]
[1752923521292,5.6289,177.56,177.51,4.59598205]
[1752923521498,2.19607833,177.58,177.53,3.11]
[1752923521792,3.14,177.56,177.55,3.11]
[1752923522194,3.14,177.56,177.5,6.89271672]
[1752923522393,3.14,177.56,177.54,3.11]
[1752923522794,3.14,177.55,177.54,3.11]
[1752923523097,3.14,177.55,177.54,7.70270317]
[1752923523490,3.14,177.55,177.54,7.70263641]
[1752923523892,3.14,177.55,177.54,13.33203641]
[1752923524599,3.14,177.55,177.54,7.70263641]
[1752923525898,8.7691,177.55,177.54,7.70263641]
[1752923526097,8.7691,177.55,177.54,3.11]
[1752923526300,3.14,177.55,177.54,3.11]
[1752923530708,3.14,177.55,177.54,8.7394]
[1752923530908,3.14,177.55,177.54,3.11]
[1752923531706,5.6291,177.55,177.53,3.27]
[1752923531904,3.03,177.54,177.53,3.27]
[1752923532105,3.03,177.54,177.53,7.85737161]
[1752923532908,3.03,177.54,177.53,13.48707161]
[1752923533206,3.03,177.54,177.52,0.03548529]
[1752923533207,3.03,177.53,177.52,0.03548529]
[1752923533409,3.03,177.53,177.52,4.62446405]
[1752923533905,3.03,177.53,177.52,0.03548529]
[1752923534309,8.6597,177.53,177.52,0.03548529]
[1752923535503,8.6597,177.53,177.52,3.30548529]
[1752923535504,5.22607833,177.53,177.52,3.30548529]
[1752923537116,5.22607833,177.53,177.52,7.8998349]
[1752923537406,10.85577833,177.53,177.52,4.6298349]
[1752923538013,10.85577833,177.53,177.52,7.8998349]
[1752923539012,10.85577833,177.53,177.52,4.6298349]
[1752923539815,5.22607833,177.53,177.52,4.6298349]
[1752923540216,5.22607833,177.53,177.52,7.8998349]
[1752923540518,3.03,177.55,177.53,3.27]
[1752923540709,2.19607833,177.56,177.54,7.86434961]
[1752923540910,3.03,177.55,177.53,3.27]
[1752923541109,2.19607833,177.56,177.53,3.27]
[1752923541110,2.19607833,177.56,177.54,4.59968635]
[1752923541411,2.19607833,177.56,177.53,3.27]
[1752923541708,8.6591,177.55,177.54,4.60342915]
[1752923541908,10.85517833,177.55,177.54,4.60342915]
[1752923542306,5.6297,177.53,177.51,3.27]
[1752923542504,7.82577833,177.53,177.52,4.60742219]
[1752923543115,10.85577833,177.53,177.52,4.60742219]
[1752923550218,8.6607,177.5,177.49,3.27]
[1752923550517,8.6607,177.5,177.49,7.88695635]
[1752923553721,3.03,177.5,177.49,7.88695635]
[1752923554322,8.6607,177.5,177.49,7.88695635]
[1752923554720,5.6307,177.5,177.49,7.88695635]
[1752923555225,8.6807,177.5,177.49,7.88695635]
[1752923558127,8.6807,177.5,177.49,4.61695635]
[1752923558521,5.631,177.49,177.48,3.23]
[1752923558720,8.681,177.49,177.48,7.69745461]
[1752923561325,5.6316,177.48,177.46,3.23]
[1752923561624,2.19607833,177.47,177.41,10.3216496]
[1752923561825,2.19607833,177.43,177.42,3.23]
[1752923562025,5.24607833,177.43,177.42,3.23]
[1752923562422,10.87897833,177.43,177.42,3.23]
[1752923562631,10.87897833,177.43,177.41,3.23]
[1752923562829,3.05,177.42,177.41,3.23]
[1752923563232,8.6832,177.42,177.41,3.23]
[1752923563432,3.05,177.42,177.41,3.23]
[1752923563731,2.19607833,177.43,177.41,3.23]
[1752923564830,10.87897833,177.43,177.41,3.23]
[1752923566329,3.05,177.4,177.39,3.23]
[1752923567032,7.82977833,177.41,177.37,5.6345]
[1752923567234,10.87977833,177.41,177.4,3.23]
[1752923575640,5.24607833,177.41,177.4,3.23]
[1752923576940,10.87957833,177.41,177.4,3.23]
[1752923580849,5.24607833,177.41,177.4,3.23]
[1752923581347,10.87957833,177.41,177.4,3.23]
[1752923581847,2.19607833,177.41,177.4,3.23]
[1752923582553,10.87957833,177.41,177.4,3.23]
[1752923582952,5.6355,177.35,177.33,3.23]
[1752923583151,5.6355,177.35,177.34,3.23]
[1752923583152,10.88157833,177.35,177.34,3.23]
[1752923584152,3.05,177.34,177.32,3.23]
[1752923584353,2.19607833,177.33,177.32,3.23]
[1752923584654,5.24607833,177.33,177.32,3.23]
[1752923585255,10.88237833,177.33,177.32,3.23]
[1752923585451,2.19607833,177.33,177.3,3.13]
[1752923585758,7.83307833,177.31,177.29,3.13]
[1752923586252,7.83307833,177.31,177.25,3.13]
[1752923586253,3.05,177.3,177.25,3.13]
[1752923586458,3.05,177.28,177.26,7.56186316]
[1752923586659,2.19607833,177.28,177.26,3.13]
[1752923587051,3.05,177.27,177.26,3.13]
[1752923587356,3.05,177.27,177.22,3.13]
[1752923587556,5.24607833,177.25,177.22,8.7694]
[1752923587753,5.24607833,177.25,177.17,483.71607833]
[1752923587953,5.24607833,177.25,177.19,3.13]
[1752923588155,3.05,177.23,177.21,3.13]
[1752923588352,3.05,177.23,177.22,3.13]
[1752923588548,5.24607833,177.23,177.22,3.13]
[1752923588752,3.05,177.22,177.18,3.13]
[1752923589059,3.05,177.21,177.18,3.13]
[1752923589253,3.05,177.2,177.18,3.13]
[1752923589456,3.05,177.2,177.17,102.7]
[1752923589457,3.05,177.2,177.19,3.13]
[1752923590351,3.05,177.2,177.16,5.6414]
[1752923590550,2.19607833,177.19,177.16,3.13]
[1752923590756,3.05,177.17,177.16,3.13]
[1752923590956,7.83667833,177.19,177.16,3.13]
[1752923591163,3.05,177.18,177.17,3.13]
[1752923591351,3.05,177.16,177.14,4.42110145]
[1752923591557,3.05,177.14,177.11,3.13]
[1752923591861,5.24607833,177.12,177.11,3.13]
[1752923592062,5.24607833,177.12,177.11,7.5533077]
[1752923592255,5.24607833,177.12,177.11,4.4233077]
[1752923592458,3.05,177.11,177.07,3.13]
[1752923592656,3.05,177.11,177.09,3.13]
[1752923592859,3.05,177.2,177.09,3.13]
[1752923593156,2.19607833,177.13,177.1,4.41979187]
[1752923593355,3.05,177.12,177.09,5.6437]
[1752923593662,3.05,177.12,177.1,3.13]
[1752923593859,2.19607833,177.13,177.1,3.13]
[1752923594058,5.24607833,177.13,177.1,3.13]
[1752923594265,5.24607833,177.13,177.1,8.7734]
[1752923594464,5.24607833,177.13,177.1,5.6434]
[1752923594665,5.24607833,177.13,177.12,3.13]
[1752923595160,2.19607833,177.21,177.12,3.13]
[1752923595467,5.24607833,177.16,177.12,3.13]
[1752923595667,7.83767833,177.16,177.07,2.19607833]
[1752923595864,3.05,177.15,177.08,3.13]
[1752923596165,2.19607833,177.14,177.08,3.13]
[1752923596363,5.24607833,177.14,177.11,5.6429]
[1752923596568,5.24607833,177.16,177.12,3.13]
[1752923596871,2.19607833,177.14,177.1,3.13]
[1752923597072,3.05,177.12,177.11,3.13]
[1752923597468,5.24607833,177.12,177.11,3.13]
[1752923598275,2.19607833,177.12,177.11,3.13]
[1752923598974,3.05,177.11,177.07,3.13]
[1752923599676,3.05,177.11,177.1,3.13]
[1752923601873,3.05,177.1,177.09,3.13]
[1752923602475,5.24607833,177.1,177.09,3.13]
[1752923603265,5.24607833,177.1,177.07,5.6443]
[1752923603476,5.24607833,177.08,176.99,5.32607833]
[1752923603676,5.24607833,177.08,177.01,3.13]
[1752923603976,2.19607833,177.08,177.06,3.13]
[1752923604273,2.19607833,177.09,177.06,3.13]
[1752923604471,5.24607833,177.09,177.07,5.6441]
[1752923604671,7.83927833,177.11,177.03,2.19607833]
[1752923604872,3.05,177.1,177.09,3.13]
[1752923605669,3.05,177.09,177.08,3.13]
[1752923605979,3.05,177.08,177.02,3.13]
[1752923606274,2.19607833,177.07,177.02,3.13]
[1752923606576,3.05,177.04,177.03,3.16567447]
[1752923606975,3.05,177.04,177.03,0.03567447]
[1752923607370,8.6953,177.04,177.03,0.03567447]
[1752923607973,3.05,177.04,177.03,0.03567447]
[1752923608474,8.6953,177.04,177.03,0.03567447]
[1752923609778,5.24607833,177.07,177.03,3.16567447]
[1752923609981,2.19607833,177.07,177.03,3.16567447]
[1752923610172,3.05,177.08,177.07,3.13]
[1752923610480,2.19607833,177.09,177.07,3.13]
[1752923610683,5.24607833,177.09,177.08,3.13]
[1752923611281,3.05,177.09,177.08,3.13]
[1752923611481,5.24607833,177.09,177.08,3.13]
[1752923611681,10.88977833,177.09,177.08,3.13]
[1752923611881,3.05,177.08,177.07,3.13]
[1752923612082,3.05,177.08,176.99,2.19607833]
[1752923612382,3.05,177.06,177.0,3.13]
[1752923612781,3.05,177.06,177.02,0.03572331]
[1752923612983,3.05,177.06,177.05,3.13]
[1752923615279,8.6947,177.06,177.05,3.13]
[1752923615682,3.25,177.05,177.02,3.37572331]
[1752923615985,5.44607833,177.03,177.02,0.03572331]
[1752923616482,11.09167833,177.03,177.02,0.03572331]
[1752923616678,8.8956,177.03,177.02,0.03572331]
[1752923616883,11.09167833,177.03,177.02,0.03572331]
[1752923619590,5.44607833,177.03,177.02,0.03572331]
[1752923619788,5.44607833,177.03,177.02,3.37572331]
[1752923620683,2.19607833,177.04,177.02,3.37572331]
[1752923621080,2.19607833,177.04,177.02,0.03572331]
[1752923621280,5.44607833,177.04,177.03,3.34]
[1752923622183,2.19607833,177.04,177.03,3.34]
[1752923622388,2.19607833,177.05,177.03,3.34]
[1752923623093,3.25,177.04,177.03,3.34]
[1752923623593,3.25,177.04,177.03,8.9856]
[1752923623791,3.25,177.04,177.03,3.34]
[1752923624290,8.8953,177.04,177.03,3.34]
[1752923624591,8.8953,177.04,177.02,0.03572331]
[1752923624592,3.25,177.04,176.98,3.34]
[1752923624792,5.44607833,177.0,176.99,4.51765371]
[1752923625489,3.25,177.0,176.99,4.51765371]
[1752923625694,5.44607833,177.0,176.99,4.51765371]
[1752923625896,11.09287833,177.0,176.99,4.51765371]
[1752923626998,3.25,176.99,176.93,8.03545646]
[1752923627199,5.44607833,176.95,176.94,4.52270329]
[1752923627696,11.09427833,176.95,176.94,4.52270329]
[1752923628999,8.8982,176.95,176.94,4.52270329]
[1752923629194,11.09427833,176.95,176.94,4.52270329]
[1752923630396,5.649,176.93,176.9,4.69545646]
[1752923630593,5.44607833,176.92,176.91,3.34]
[1752923630798,3.25,176.94,176.91,3.34]
[1752923631000,5.44607833,176.94,176.91,4.69545646]
[1752923631201,3.25,176.93,176.92,3.34]
[1752923631395,2.19607833,176.94,176.91,4.69545646]
[1752923631596,3.25,176.95,176.92,3.34]
[1752923631892,2.19607833,176.96,176.95,5.6481]
[1752923632198,2.19607833,176.96,176.95,3.34]
[1752923632594,2.19607833,176.96,176.93,8.03545646]
[1752923632595,3.25,176.95,176.93,8.03545646]
[1752923632899,2.19607833,176.94,176.93,8.03545646]
[1752923633099,2.19607833,176.94,176.93,13.68405646]
[1752923633490,2.19607833,176.96,176.93,4.69545646]
[1752923633694,2.19607833,176.96,176.95,5.6482]
[1752923633898,2.19607833,176.96,176.95,13.68365646]
[1752923634802,2.19607833,176.96,176.95,8.03545646]
[1752923635004,5.44607833,176.96,176.95,3.34]
[1752923635192,5.44607833,176.96,176.94,4.69545646]
[1752923635397,3.25,176.95,176.94,3.34]
[1752923636300,3.25,176.95,176.94,8.03545646]
[1752923636503,3.25,176.95,176.94,3.34]
[1752923636897,3.25,176.95,176.92,3.34]
[1752923637096,7.84487833,176.94,176.92,3.34]
[1752923637302,3.25,176.93,176.92,3.34]
[1752923637803,3.25,176.93,176.91,8.03545646]
[1752923637996,5.44607833,176.92,176.91,3.34]
[1752923638197,5.44607833,176.92,176.9,4.69545646]
[1752923638198,2.19607833,176.92,176.9,4.69545646]
[1752923638396,3.25,176.91,176.9,8.03545646]
[1752923638601,3.25,176.91,176.9,3.34]
[1752923638995,8.8995,176.91,176.9,3.34]
[1752923639193,8.8995,176.91,176.87,4.69545646]
[1752923639194,3.25,176.91,176.87,4.69545646]
[1752923639394,3.25,176.88,176.86,4.69545646]
[1752923639602,3.25,176.88,176.85,3.34]
[1752923639603,3.25,176.88,176.87,3.34]
[1752923639801,5.44607833,176.88,176.87,3.34]
[1752923640702,2.19607833,176.88,176.87,8.9907]
[1752923640898,2.19607833,176.9,176.87,4.69545646]
[1752923641103,2.19607833,176.9,176.88,3.34]
[1752923641304,2.19607833,176.9,176.89,3.34]
[1752923641498,3.25,176.89,176.88,3.34]
[1752923641695,3.25,176.89,176.87,8.9905]
[1752923641896,3.25,176.89,176.88,3.34]
[1752923642400,3.25,176.89,176.88,7.87300197]
[1752923643107,8.9001,176.89,176.88,7.87300197]
[1752923643312,8.9001,176.89,176.88,4.53300197]
[1752923643507,2.23235957,176.9,176.88,4.53300197]
[1752923643807,2.23235957,176.9,176.84,4.69545646]
[1752923644107,3.25,176.88,176.87,3.34]
[1752923644299,3.25,176.88,176.87,7.87249566]
[1752923644500,3.25,176.88,176.87,13.52319566]
[1752923645010,0.03628124,176.9,176.89,3.34]
[1752923645309,5.27607833,176.93,176.9,3.25]
[1752923645609,10.92507833,176.93,176.92,3.25]
[1752923646008,2.19607833,176.93,176.87,3.25]
[1752923646205,3.08,176.89,176.88,7.75660699]
[1752923646604,2.19607833,176.91,176.88,7.75660699]
[1752923646808,3.08,176.9,176.89,3.25]
[1752923647906,5.6497,176.91,176.89,8.9001]
[1752923648108,8.7297,176.91,176.9,3.25]
[1752923648308,10.92577833,176.91,176.9,3.25]
[1752923648909,8.7299,176.9,176.88,3.25]
[1752923649109,8.7299,176.9,176.89,0.03586484]
[1752923649309,10.92597833,176.9,176.89,3.28586484]
[1752923650614,10.92597833,176.9,176.89,0.03586484]
[1752923654915,10.92597833,176.9,176.89,3.28586484]
[1752923655910,10.92597833,176.9,176.89,0.03586484]
[1752923656917,10.92597833,176.9,176.89,3.28586484]
[1752923658613,8.7299,176.9,176.89,3.28586484]
[1752923658808,11.294,176.99,176.89,3.28586484]
[1752923659120,2.19607833,176.91,176.9,3.25]
[1752923659513,10.92557833,176.91,176.9,3.25]
[1752923661315,8.7299,176.9,176.89,3.25]
[1752923661513,8.7299,176.9,176.84,3.25]
[1752923661514,3.08,176.9,176.84,3.25]
[1752923661820,3.08,176.88,176.87,3.25]
[1752923662520,8.7307,176.88,176.87,3.25]
[1752923662719,3.08,176.88,176.82,3.25]
[1752923662919,3.08,176.85,176.83,4.51995463]
[1752923663114,8.7316,176.85,176.84,4.51995463]
[1752923663324,5.27607833,176.85,176.82,3.25]
[1752923663617,10.92807833,176.83,176.82,3.25]
[1752923664016,8.732,176.83,176.82,3.25]
[1752923664220,10.92807833,176.83,176.82,3.25]
[1752923664421,7.84807833,176.83,176.82,3.25]
[1752923664622,2.19607833,176.85,176.82,3.25]
[1752923664817,3.08,176.87,176.79,3.25]
[1752923665021,2.19607833,176.86,176.8,4.52053494]
[1752923665323,2.19607833,176.94,176.83,3.25]
[1752923665521,7.84697833,176.87,176.84,4.52100434]
[1752923665715,7.84697833,176.87,176.85,3.25]
[1752923666024,2.19607833,176.87,176.85,3.25]
[1752923666223,2.19607833,176.86,176.81,3.25]
[1752923666420,5.27607833,176.86,176.82,4.52267914]
[1752923666624,10.92717833,176.86,176.83,4.52267914]
[1752923666820,10.92717833,176.86,176.85,3.25]
[1752923667019,2.19607833,176.86,176.8,3.25]
[1752923667221,5.6516,176.85,176.81,10.17507131]
[1752923667519,3.08,176.84,176.82,4.52257131]
[1752923667824,3.08,176.84,176.76,109.54094707]
[1752923667825,3.08,176.81,176.76,107.97545646]
[1752923668121,3.08,176.81,176.8,3.25]
[1752923668315,3.08,176.81,176.8,7.77746573]
[1752923668521,8.7327,176.81,176.8,7.77746573]
[1752923669121,3.08,176.81,176.78,3.25]
[1752923669320,3.08,176.8,176.79,4.52619614]
[1752923669522,5.27607833,176.8,176.79,4.52619614]
[1752923669722,10.92907833,176.8,176.79,4.52619614]
[1752923670124,10.92907833,176.8,176.79,7.77619614]
[1752923670325,10.92907833,176.8,176.79,4.52619614]
[1752923670621,2.19607833,176.8,176.78,0.03624955]
[1752923670925,5.6552,176.73,176.71,3.25]